Cogmind - Beta 16 @@@ ROGUE MODE // 2026.01.24 @ 07:56:21 Player: Glyb Result: Destroyed by Y-45 Defender with Heavy Assault Rifle Performance ------------- Evolutions (1) 500 Regions Visited (2) 400 Robots Destroyed (9) 45 Value Destroyed (189) 189 Prototype IDs (1) 20 Alien Tech Used (0) 0 Bonus (0) 0 TOTAL SCORE: 1154 Bonus ------- None Cogmind --------- Core Integrity 0/400 Matter 178/300 Energy 88/100 System Corruption 0% Temperature Danger (417) Movement Treading (145) Location -9/Materials Parts ------- > --- POWER (1) -------- (None) > --- PROPULSION (4) --- Advanced Treads Advanced Treads Advanced Treads > --- UTILITY (2) ------ (None) > --- WEAPON (2) ------- Heavy Particle Gun Heavy Particle Cannon > --- INVENTORY (5) ---- Heat Sink Faulty Heavy Particle Gun Plasma Cutter Great Maul Great Maul Peak State ------------ > --- POWER ------------ Light Nuclear Core > --- PROPULSION ------- Advanced Treads Advanced Treads Advanced Treads Advanced Treads > --- UTILITY ---------- (None) > --- WEAPON ----------- Heavy Particle Gun Heavy Particle Cannon > --- INVENTORY -------- Heat Sink Heavy Particle Gun Plasma Cutter Great Maul Great Maul [Rating: 23] Favorites ----------- Power Ion Engine Engine Ion Engine Power Core Light Nuclear Core Propulsion Aluminum Leg Treads Advanced Treads Leg Aluminum Leg Wheel Wheel Flight Unit Cesium-ion Thruster Utility Small Storage Unit Device Seismic Detector Storage Small Storage Unit Weapon Assault Rifle Energy Gun Medium Laser Energy Cannon Heavy Particle Cannon Ballistic Gun Assault Rifle Special Weapon Mining Laser Build | -11 -10 -9 ------- Run | Yrd Mat Mat Slots Evolved 2 | . . 2 Power . | . . . Propulsion 2 | . . 2 Utility . | . . . Weapon . | . . . Parts Attached 30 | 7 6 17 Power 4 | 1 1 2 Engine 1 | 1 . . Core 3 | . 1 2 Reactor . | . . . Propulsion 13 | 2 3 8 Treads 4 | . . 4 Leg 3 | 2 1 . Wheel 1 | . 1 . Hover . | . . . Flight 5 | . 1 4 Utility 3 | 2 . 1 Device 1 | 1 . . Storage 2 | 1 . 1 Processor . | . . . Hackware . | . . . Protection . | . . . Artifact . | . . . Weapon 10 | 2 2 6 Energy Gun 5 | 1 1 3 Energy Cannon 2 | . . 2 Ballistic Gun 1 | 1 . . Ballistic Cannon . | . . . Launcher . | . . . Special Weapon 2 | . 1 1 Impact Weapon . | . . . Slashing Weapon . | . . . Piercing Weapon . | . . . Special Melee Weapon . | . . . Unidentified Prototypes 1 | . . 1 Parts Lost 13 | . 7 6 Power 3 | . 1 2 Propulsion 7 | . 3 4 Utility 1 | . 1 . Weapon 2 | . 2 . Highest Loss Streak 7 | . 7 2 To Critical Strikes . | . . . Average Backups 4 | 2 4 4 Power 1 | . 1 1 Propulsion . | . 1 . Utility . | . . 1 Weapon 1 | 1 1 . Tool/Special . | . . . Unused Backups 4 | . 1 3 Power 1 | . 1 . Propulsion . | . . . Utility 1 | . . 1 Weapon 2 | . . 2 Tool/Special . | . . . Average Slot Usage (%) 66 | . 80 36 Engine 5 | . 7 . Core 5 | . 4 7 Treads 2 | . . 9 Leg 15 | . 22 . Wheel 1 | . . 1 Flight 3 | . . 10 Device 8 | . 12 . Storage 9 | . 11 3 Energy Gun 7 | . 10 1 Energy Cannon 1 | . . 3 Ballistic Gun 6 | . 9 . Peak Build Rating 23 | 7 9 23 Average Rating 7 | 5 6 9 On Entrance 2 | . 7 1 Avg Prop Armor Cover (%) 5 | . . 5 Naked Turns 73 | . 37 36 Heaviest Build 17 | 15 15 17 Greatest Support 88 | 20 20 88 Greatest Overweight (x) 3 | 1 3 1 Average Overweight (x) . | . . . Largest Inventory Capacity 10 | 8 8 10 Average Capacity 7 | 7 7 5 Most Carried 7 | 4 6 7 Average Carried 4 | 2 4 4 Final Capacity 8 | 8 5 5 Final Carried 5 | 4 3 5 Class Distribution -------------------- 83% | Mutant 12% | Sprinter 3% | Scavenger-Mutant Dominant Class ---------------- Mutant | -10/Materials Mutant | -9/Materials Resources | -11 -10 -9 ----------- Run | Yrd Mat Mat Matter Collected 379 | 286 36 57 Remotely . | . . . Salvage Created 282 | 118 89 75 Parts 19 | 7 5 7 Haulers Intercepted . | . . . Recyclers Shooed 1 | 1 . . Parts Field Recycled . | . . . Retrieved Matter . | . . . Parts Self-Destructed . | . . . Prevented . | . . . Parts Restored . | . . . Kills | -11 -10 -9 ------- Run | Yrd Mat Mat Combat Hostiles Destroyed 6 | . 3 3 Guns 3 | . 3 . Cannons 3 | . . 3 Classes Destroyed 4 | 2 1 1 Tunneler 2 | 2 . . Recycler 1 | 1 . . Swarmer 2 | . . 2 Grunt 4 | . 3 1 Best Kill Streak 3 | 2 2 3 Combat Bots Only 3 | . 2 3 Max Kills in Single Turn 2 | 2 1 1 Gunslinging . | . . . Exploded . | . . . Melee . | . . . Uniques/NPCs Destroyed . | . . . Combat | -11 -10 -9 -------- Run | Yrd Mat Mat Hostile Shots Fired 275 | . 93 182 Missed 93 | . 30 63 Hits 182 | . 63 119 Projectile 182 | . 63 119 Critical Strikes 2 | . . 2 Damage Taken 2017 | . 720 1297 Core 645 | . 240 405 Absorbed by Shields . | . . . Core Remaining (%) 52 | 100 4 . Volleys Fired 28 | 9 12 7 Largest 2 | 2 2 2 Hottest 150 | 70 140 150 Shots Fired 54 | 18 22 14 Gun 38 | 18 17 3 Cannon 11 | . . 11 Launcher . | . . . Special 5 | . 5 . Kinetic 14 | 9 5 . Thermal 40 | 9 17 14 Explosive . | . . . Electromagnetic . | . . . Robot Hit Streak 10 | 7 10 2 Robot Miss Streak 4 | 1 2 4 Penetration Max . | . . . Secondary Targets . | . . . Shots Hit Robots 33 | 12 15 6 Core Hits 13 | 4 6 3 Critical Kills . | . . . Critical Parts Destroyed . | . . . Critical Strikes 3 | 1 2 . Burn 3 | 1 2 . Melee Attacks . | . . . Impact . | . . . Slashing . | . . . Piercing . | . . . Sneak Attacks . | . . . Combat Hostiles . | . . . Follow-up Attacks . | . . . Damage Inflicted 633 | 191 221 221 Guns 385 | 191 173 21 Cannons 200 | . . 200 Explosions . | . . . Melee . | . . . Ramming . | . . . Kinetic 161 | 101 60 . Thermal 472 | 90 161 221 Explosive . | . . . Electromagnetic . | . . . Impact . | . . . Slashing . | . . . Piercing . | . . . Highest Corruption . | . . . Average Corruption . | . . . Corruption Purged . | . . . Corruption Blocked . | . . . Overload Shots . | . . . Overflow Damage 5 | . . 5 Projectiles 5 | . . 5 Explosions . | . . . Melee . | . . . Knockbacks . | . . . Impact . | . . . Kinetic . | . . . Secondary . | . . . Self-Inflicted Damage . | . . . Shots . | . . . Rammed 2 | . . 2 Targets Rammed 2 | . . 2 Kicked . | . . . Crushed . | . . . Highest Temperature 449 | 72 398 449 Average Temperature 174 | 34 160 290 Received Heat Transfer 876 | . 390 486 Effects 8 | . 1 7 Shutdowns 2 | . . 2 Energy Bleed 1 | . 1 . Interference 2 | . . 2 Short Circuit 2 | . . 2 Damage (major) 1 | . . 1 Siege Activations . | . . . Martial Activations . | . . . Shielding Activations . | . . . Robots Disrupted . | . . . Combat Hostiles . | . . . Robots Corrupted . | . . . Combat Hostiles . | . . . Parts Fried . | . . . Impact Corruptions . | . . . Robots Melted . | . . . Combat Hostiles . | . . . Parts Melted 3 | 1 2 . Heat Transferred 1212 | 333 546 333 Parts Sabotaged . | . . . Parts Stolen . | . . . Parts Stripped . | . . . Power Chain Reactions . | . . . Alert | -11 -10 -9 ------- Run | Yrd Mat Mat Maximum Alert Level . | . . . Low Security (%) 100 | 100 100 100 Level 1 . | . . . Level 2 . | . . . Level 3 . | . . . Level 4 . | . . . Level 5 . | . . . High Security . | . . . Max Security . | . . . Peak Influence 194 | 10 96 194 Initial 37 | . . 37 Average 31 | . 12 87 Influence Increases 539 | 15 207 317 Destroy 0b10 Robot/C 120 | . 60 60 Destroy 0b10 Robot/NC 15 | 15 . . Destroy Leader 10 | . 10 . Successful Hack 14 | . . 14 Destroy Structure 5 | . 2 3 Partial Spotted 15 | . . 15 Lose Combat Pursuer 360 | . 135 225 Influence Decreases 365 | 15 119 231 Entered New Map 51 | . . 51 Time Decay 233 | 15 98 120 Lost Part 81 | . 21 60 Squads Dispatched 5 | . 4 1 Investigation 1 | . 1 . Extermination . | . . . Reinforcement 4 | . 3 1 Assault . | . . . Garrison . | . . . Intercept . | . . . Searches Triggered . | . . . Construction Impeded . | . . . Haulers Reinforced . | . . . Active Scanning Responses . | . . . Cargo Convoy Interrupts . | . . . Stealth | -11 -10 -9 --------- Run | Yrd Mat Mat Distress Signals 7 | . 3 4 Communications Jammed . | . . . Distress Signals . | . . . Times Spotted 57 | . 22 35 Peak Tracking Total 15 | . 9 15 Tactical Retreats 11 | . 4 7 Traps | -11 -10 -9 ------- Run | Yrd Mat Mat Traps Triggered 4 | . 3 1 Indirectly . | . . . Trap Hack Attempts . | . . . Triggered . | . . . Disarmed . | . . . Reprogrammed . | . . . Reused . | . . . Traps Extracted . | . . . Installed . | . . . Triggered . | . . . Machines | -11 -10 -9 ---------- Run | Yrd Mat Mat Machines Disabled . | . . . Max in Single Turn . | . . . Machines Repaired . | . . . Machines Dismantled . | . . . Machines Sabotaged . | . . . Overloaded Fab Kills . | . . . Hacking | -11 -10 -9 --------- Run | Yrd Mat Mat Machines Accessed 3 | . . 3 Terminals 3 | . . 3 Fabricators . | . . . Repair Stations . | . . . Recycling Units . | . . . Scanalyzers . | . . . Garrison Access . | . . . Total Hacks 4 | . . 4 Successful 4 | . . 4 Failed . | . . . Catastrophic . | . . . Database Lockouts . | . . . Manual 4 | . . 4 Terminals 4 | . . 4 Fabricators . | . . . Repair Stations . | . . . Recycling Units . | . . . Scanalyzers . | . . . Garrison Access . | . . . Terminal Hacks 1 | . . 1 Terminal Index 1 | . . 1 Fabricator Hacks . | . . . Repair Station Hacks . | . . . Recycling Unit Hacks . | . . . Scanalyzer . | . . . Garrison Access Hacks . | . . . Unauthorized Hacks 3 | . . 3 Terminals 3 | . . 3 Skim 3 | . . 3 Fabricators . | . . . Repair Stations . | . . . Recycling Units . | . . . Scanalyzers . | . . . Garrison Access . | . . . Data Cores Recovered . | . . . Used . | . . . Hacking Detections . | . . . Full Trace Events . | . . . Feedback Events . | . . . Feedback Blocked . | . . . Robot Schematics Acquired . | . . . Robots Built . | . . . Authchips . | . . . Time . | . . . Total Robot Build Rating . | . . . Part Schematics Acquired . | . . . Parts Built . | . . . Authchips . | . . . Time . | . . . Total Part Build Rating . | . . . Part Studies Acquired . | . . . Parts Repaired . | . . . Time . | . . . Parts Recycled . | . . . Recycled Matter . | . . . Retrieved Matter . | . . . Retrieved Components . | . . . Parts Scanalyzed . | . . . Part Schematics Acquired . | . . . Parts Damaged . | . . . Bothacking | -11 -10 -9 ------------ Run | Yrd Mat Mat Used RIF Installer . | . . . Robots Hacked . | . . . Non-combat . | . . . Combat . | . . . Robot Hacks Applied . | . . . Relay Couplers Released . | . . . Fabnet Peak Effective % . | . . . Robots Rewired . | . . . Allies Hacked . | . . . Hacks Repelled . | . . . Allies | -11 -10 -9 -------- Run | Yrd Mat Mat Total Allies . | . . . Largest Group . | . . . Highest-Rated Group . | . . . Highest-Rated Ally . | . . . Total Orders . | . . . Ally Attacks . | . . . Total Damage . | . . . Kills . | . . . Allies Corrupted . | . . . Allies Melted . | . . . Intel | -11 -10 -9 ------- Run | Yrd Mat Mat Active Infowar (turns) 522 | 19 503 . Seismic 522 | 19 503 . Robot Analysis Total . | . . . Derelict Logs Recovered . | . . . Drone Launches . | . . . Drone Recoveries . | . . . Exploration | -11 -10 -9 ------------- Run | Yrd Mat Mat Turns Passed 951 | 110 582 259 Spaces Moved 890 | 60 365 465 Core 166 | 9 86 71 Treads 16 | . . 16 Legs 236 | 51 185 . Wheels 87 | . 52 35 Hover . | . . . Flight 385 | . 42 343 Fastest Speed 26 | 50 40 26 Average Speed 67 | 114 91 42 Slowest Speed 200 | 190 200 145 Overloaded Moves . | . . . Propulsion Burnouts . | . . . Robots Hopped 12 | . 2 10 Potential Cave-ins . | . . . Cave-ins Triggered . | . . . Exploration Rate (%) 33 | 4 61 36 Regions Visited 2 Branch Regions . Pre-discovered Areas . | . . . Known Exits Taken . | . . . Unknown Exits Taken 2 | 1 1 . Scrap Searched . | . . . Spaces Dug . | . . . Terrain Destroyed 5 | . 2 3 Melee . | . . . Projectile 5 | . 2 3 AOE . | . . . Terrain Rammed . | . . . Walls Destroyed . | . . . Machines Disabled . | . . . Actions | -11 -10 -9 --------- Run | Yrd Mat Mat Total 1156 | 80 578 498 Wait 195 | . 191 4 Move 866 | 59 360 447 Hop 10 | . 2 8 Pick Up 12 | 5 4 3 Fast Attach 22 | 6 1 15 Attach 8 | 1 5 2 Detach 4 | . 1 3 Swap 3 | . 1 2 Drop 6 | . 1 5 Fire 28 | 9 12 7 Melee . | . . . Ram . | . . . Kick . | . . . Crush 2 | . . 2 Escape Stasis . | . . . Rewire . | . . . Trap . | . . . Miscellaneous . | . . . Route ------- -11/Scrapyard -10/Materials (discovered 4 exits: *Mat x2 / [*Min] / [*Sub]) -9/Materials (discovered 1 exit: [*Mat]) History --------- Turn | Location | Event 5 | -11/Scrapyard | Discovered new exit (range 15) 111 | -11/Scrapyard | Entered Materials 134 | -10/Materials | Discovered new exit (range 8) 303 | -10/Materials | Build established: Mutant 348 | -10/Materials | Discovered new exit (range 11) 590 | -10/Materials | Core integrity fell below 50% 623 | -10/Materials | Core integrity fell below 20% 627 | -10/Materials | Discovered new exit (range 15) 645 | -10/Materials | Lost 7 parts (1p3n1u2w) 673 | -10/Materials | Discovered new exit (range 16) 693 | -10/Materials | Entered another Materials area 693 | -9/Materials | Evolved 2 slots: Propulsion x2 792 | -9/Materials | Discovered new exit (range 12) 876 | -9/Materials | Core integrity fell below 50% 946 | -9/Materials | Core integrity fell below 20% 952 | -9/Materials | Destroyed by Y-45 Defender with Heavy Assault Rifle Last Messages --------------- 00929_ Faulty integration damages Adv. Treads (-32). 00932_ Acquired Hvy. Particle Gun. 00934_ G-34 Mercenary destroyed. 00934_ R-06 Scavenger collects Sml. Laser. 00937_ R-06 Scavenger collects Cesium-ion Thruster. 00937_ Adv. Treads destroyed. 00939_ Adv. Treads broken. 00939_ Overheating: Short circuit. 00940_ Hvy. Particle Gun broken. 00940_ Overheating: Short circuit. 00940_ Dropped Broken Hvy. Particle Gun. 00940_ R-06 Scavenger collects Heat Sink. 00942_ Power failure, Lgt. Nuclear Core shutdown. 00942_ Acquired Hvy. Particle Gun. 00947_ Overheating: System interference. 00947_ Hvy. Particle Cannon temporarily disabled. 00950_ Slammed into G-34 Mercenary. 00952_ Overheating: Broken Adv. Treads damaged (-13). 00952_ Slammed into G-34 Mercenary. 00952_ Lgt. Nuclear Core destroyed. Map ----- +----------------------------------------------------+ | ????????????????????????????????????????????# | | ????????????????????????????????????????????# | | ???????????????????????????????????????????## | | ???????????????????????????????????????????# | | ?????????????????????????????????????####### | | ????????????????????????###########??# *!= | | ????????????????????????# #??# ##### | | ???????????????######+### #??# #???# | | ???????????????? # #??# #??#### | | ????????????????? + #??# #??# | | ??????????????????? # #### #### | | ????????????????????# # / + | | ????????????????????# # ####+#### | | ????????????????????+ / ## T ## " | | ????????????????????# ############ ## " | | ????????????????????# #?? ?????# ## " | | ????????????????????# ^ #? ??????# """ ## | | ????????????????????# #? ??????# """ ## | | ????????????????????# #? ???????# """ ##### | | ????????????????????# +? "???????# # | | ????????????????????# # ????????####### | | ????????????????????# # ??????????????# | | ??????????????####### # ???????????????# | | ??????? a u # ???????????????? """ | | ??????????????#### g#%%#####????????????? """ | | ????????????????#; r@Y gg #????????????? """ | | ????????????????## #*g ][]#????????????# | | ?????????????????# # = ] [#????????????##### | | ?????????????????# ########????????????????? | | ?????????????????# ????????????????????????? | | ????????????????? ?????????????????????????? | | ???????????????? ?????????????????????????? | | ??????????????? a ??????????????????????????? | | ??????????????# "??????????????????????????? | | ??????????????# ????????????????????????????? | | ??????????????# ????????????????????????????? | | ??????????????# ?????????????????????????????? | | ??????????????# ?????????????????????????????? | | ??????????????#??????????????????????????????? | | ?????????????????????????????????????????????? | | ?????????????????????????????????????????????? | | ?????????????????????????????????????????????? | | ?????????????????????????????????????????????? | | ?????????????????????????????????????????????? | | ?????????????????????????????????????????????? | | ?????????????????????????????????????????????? | | ?????????????????????????????????????????????? | | ?????????????????????????????????????????????? | | ?????????????????????????????????????????????? | | ?????????????????????????????????????????????? | +----------------------------------------------------+ Best States ------------- Heat Dissipation 28 Energy Generation 14 Energy Capacity 250 Matter Stores 300 Matter Capacity 300 Sight Range 16 Terrain Scan Density 10 Evasion (%) 64 Recoil Reduction 4 Item Schematics ----------------- None Robot Schematics ------------------ None Fabricated ------------ Nothing Repaired ---------- Nothing Studied --------- None Alien Tech Used ----------------- None Achievements -------------- None Challenges ------------ None Game ------ Seed OvertunedCryofiberBoomstick Manual? 0 Play Time 00:10:42 Cumulative 29.1 hours Start 2026.01.24 @ 07:46:08 End 2026.01.24 @ 07:56:21 Sessions 1 Manual Loads 0 Difficulty Rogue Special Mode None Game No. 37 Rogue 37 Adventurer 0 Explorer 0 Win Type - Total 0 Types 0/0/0/0/0/0/0/0/0/0 Lore% 21 Gallery% 31 Achievement% 23 Wizard Run 0 Options --------- Layout 0 ASCII 0 Keyboard 1 Movement Arrows Keybinds 0 Fullscreen 1 Font 18/SmallcapsGlow Map View 76x50 Zoom Use 0% Tactical HUD 1 Map Filters NONE Filters NONE Steam 1 RUN: f9616834-8a2c-47f2-9506-b50198f9bc91